[Event "HUN-ch Rapid 2019"]
[Site "Ajka"]
[Date "2019.07.19"]
[Round "2.17"]
[White "Farago, Ivan"]
[Black "Bognar, Csaba"]
[Result "1-0"]
[ECO "E73"]
[WhiteElo "2350"]
[BlackElo "2166"]
[Annotator "NA"]
[PlyCount "83"]
[EventDate "2019.07.18"]
[EventType "swiss"]
[EventCountry "HUN"]
[SourceTitle "playchess.com"]
[Source "ChessBase"]
[SourceQuality "1"]
[TimeControl "1200+5"]

1. d4 {[%emt 0:00:03]} Nf6 {[%emt 0:00:01]} 2. c4 {[%emt 0:00:01]} g6 {[%emt 0:00:02]} 3. Nc3 {[%emt 0:00:02]} Bg7 {[%emt 0:00:01]} 4. e4 {[%emt 0:00:02]} d6 {[%emt 0:00:02]} 5. Be2 {[%emt 0:00:02]} O-O {[%emt 0:00:03]} 6. Bg5 {[%emt 0:00:01]} h6 {[%emt 0:00:05]} 7. Be3 {[%emt 0:00:06]} e5 {[%emt 0:00:13]} 8. d5 {[%emt 0:00:03]} Nbd7 {[%emt 0:00:16]} 9. Qd2 {[%emt 0:00:06]} Kh7 {[%emt 0:00:16]} 10. h4 {[%emt 0:00:09]} Nc5 {[%emt 0:01:08]} 11. f3 {[%emt 0:00:03]} Nh5 {[%emt 0:00:20]} 12. g4 {[%emt 0:01:13]} Ng3 {[%emt 0:00:13]} 13. Rh2 {[%emt 0:00:04]} f5 {[%emt 0:01:37]} 14. h5 {[%emt 0:00:14]} f4 {[%emt 0:00:16]} 15. hxg6+ {[%emt 0:00:07]} Kxg6 {[%emt 0:00:03]} 16. Bf2 {[%emt 0:00:24]} Nxe2 {[%emt 0:01:58]} 17. Ngxe2 {[%emt 0:00:09]} Bf6 {[%emt 0:00:14]} 18. O-O-O {[%emt 0:00:05]} Bd7 {[%emt 0:00:31]} 19. Rdh1 {[%emt 0:00:14]} Rh8 {[%emt 0:00:03]} 20. Bh4 {[%emt 0:00:34]} Kf7 {[%emt 0:02:46]} 21. Kb1 {[%emt 0:00:31]} Rh7 {[%emt 0:00:55]} 22. Nc1 {[%emt 0:01:02]} Qe7 {[%emt 0:00:50]} 23. Nb5 {[%emt 0:01:09]} Bxb5 {[%emt 0:01:32]} 24. cxb5 {[%emt 0:00:02]} a6 {[%emt 0:00:02]} 25. Bxf6 {[%emt 0:00:29]} Qxf6 {[%emt 0:00:02]} 26. Rh5 {[%emt 0:00:02]} Ke7 {[%emt 0:00:45]} 27. bxa6 {[%emt 0:00:14]} bxa6 {[%emt 0:00:52]} 28. Qh2 {[%emt 0:00:29]} Rah8 {[%emt 0:00:20]} 29. g5 {[%emt 0:00:24]} Qg6 {[%emt 0:00:06]} 30. Rxh6 {[%emt 0:01:31]} Rxh6 {[%emt 0:00:07]} 31. gxh6 {[%emt 0:00:01]} Rh7 {[%emt 0:01:27]} 32. Nb3 {[%emt 0:01:32]} Nd7 {[%emt 0:02:47]} 33. Na5 {[%emt 0:00:19]} Nf6 {[%emt 0:00:01]} 34. Nc6+ {[%emt 0:00:30]} Kf8 {[%emt 0:00:26]} 35. Qh3 {[%emt 0:02:05]} Nxd5 {[%emt 0:00:10]} 36. Qc8+ {[%emt 0:02:34]} Kf7 {[%emt 0:00:02]} 37. Ka1 {[%emt 0:00:43]} Rxh6 {[%emt 0:00:27]} 38. Rc1 {[%emt 0:00:56]} Ne7 {[%emt 0:01:38]} 39. Nxe7 {[%emt 0:00:24]} Kxe7 {[%emt 0:00:02]} 40. Rxc7+ {[%emt 0:00:21]} Kf6 {[%emt 0:00:07]} 41. Qd8+ {[%emt 0:00:04]} Ke6 {[%emt 0:00:09]} 42. Qe7# 1-0

[Event "HUN-ch Rapid 2019"]
[Site "Ajka"]
[Date "2019.07.19"]
[Round "2.18"]
[White "Horvath, Csaba"]
[Black "Jakab, Attila"]
[Result "0-1"]
[ECO "B27"]
[WhiteElo "2503"]
[BlackElo "2377"]
[Annotator "ChessBase"]
[PlyCount "78"]
[EventDate "2019.07.18"]
[EventType "swiss"]
[EventCountry "HUN"]
[SourceTitle "playchess.com"]
[Source "ChessBase"]
[SourceQuality "1"]
[TimeControl "1200+5"]

1. e4 {[%emt 0:00:04]} c5 {[%emt 0:00:02]} 2. Nf3 {[%emt 0:00:02]} g6 {[%emt 0:00:02]} 3. d4 {[%emt 0:00:02]} Bg7 {[%emt 0:00:02]} 4. c4 {[%emt 0:00:04]} Qb6 {[%emt 0:00:02]} 5. Nc3 {[%emt 0:00:22]} cxd4 {[%emt 0:00:02]} 6. Nd5 {[%emt 0:00:44]} Qa5+ {[%emt 0:00:03]} 7. b4 {[%emt 0:01:34]} Qd8 {[%emt 0:00:02]} 8. Bb2 {[%emt 0:01:13]} e5 {[%emt 0:00:28]} 9. Bd3 {[%emt 0:01:09]} Ne7 {[%emt 0:00:06]} 10. O-O {[%emt 0:00:23]} d6 {[%emt 0:00:13]} 11. Rc1 {[%emt 0:00:10]} O-O {[%emt 0:00:14]} 12. Qb3 {[%emt 0:00:38]} Nbc6 {[%emt 0:00:17]} 13. Ba3 {[%emt 0:00:32]} Re8 {[%emt 0:02:28]} 14. Rc2 {[%emt 0:00:23]} h6 {[%emt 0:00:10]} 15. Rfc1 {[%emt 0:00:18]} Kh8 {[%emt 0:00:19]} 16. Nd2 {[%emt 0:00:10]} Be6 {[%emt 0:01:33]} 17. f3 {[%emt 0:00:12]} Ng8 {[%emt 0:00:51]} 18. Qa4 {[%emt 0:00:59]} Bf8 {[%emt 0:01:14]} 19. b5 {[%emt 0:00:41]} Nce7 {[%emt 0:00:29]} 20. Nb3 {[%emt 0:02:21]} Nc8 {[%emt 0:00:33]} 21. Bb4 {[%emt 0:01:39]} a5 {[%emt 0:02:05]} 22. Bd2 {[%emt 0:02:46]} b6 {[%emt 0:01:21]} 23. Nb4 {[%emt 0:00:19]} Nce7 {[%emt 0:00:22]} 24. Nd5 {[%emt 0:00:22]} Rb8 {[%emt 0:00:29]} 25. Be1 {[%emt 0:00:07]} Qd7 {[%emt 0:00:27]} 26. Qa3 {[%emt 0:00:13]} f5 {[%emt 0:00:19]} 27. f4 {[%emt 0:00:35]} fxe4 {[%emt 0:00:24]} 28. Bxe4 {[%emt 0:00:03]} Bf5 {[%emt 0:00:15]} 29. Nd2 {[%emt 0:00:20]} Bg7 {[%emt 0:00:55]} 30. Qd3 {[%emt 0:00:02]} Nf6 {[%emt 0:00:08]} 31. Nxe7 {[%emt 0:01:31]} Rxe7 {[%emt 0:00:11]} 32. Bh4 {[%emt 0:00:27]} Nxe4 {[%emt 0:00:37]} 33. Nxe4 {[%emt 0:00:28]} Re6 {[%emt 0:00:21]} 34. Re2 {[%emt 0:01:09]} Rbe8 {[%emt 0:00:33]} 35. Rce1 {[%emt 0:00:09]} d5 {[%emt 0:00:31]} 36. cxd5 {[%emt 0:00:03]} Qxd5 {[%emt 0:00:02]} 37. Nc3 {[%emt 0:00:22]} Bxd3 {[%emt 0:00:12]} 38. Nxd5 {[%emt 0:00:02]} Bxe2 {[%emt 0:00:02]} 39. Nc7 {[%emt 0:00:01]} d3 {[%emt 0:00:06]} 0-1

[Event "HUN-ch Rapid 2019"]
[Site "Ajka"]
[Date "2019.07.19"]
[Round "2.19"]
[White "Popovics, Adam"]
[Black "Karacsonyi, Gellert"]
[Result "1-0"]
[ECO "E32"]
[WhiteElo "2365"]
[BlackElo "2315"]
[Annotator "NA"]
[PlyCount "111"]
[EventDate "2019.07.18"]
[EventType "swiss"]
[EventCountry "HUN"]
[SourceTitle "playchess.com"]
[Source "ChessBase"]
[SourceQuality "1"]
[TimeControl "1200+5"]

1. d4 {[%emt 0:00:03]} Nf6 {[%emt 0:00:02]} 2. c4 {[%emt 0:00:04]} e6 {[%emt 0:00:01]} 3. Nc3 {[%emt 0:00:04]} Bb4 {[%emt 0:00:01]} 4. Qc2 {[%emt 0:00:03]} O-O {[%emt 0:00:04]} 5. Nf3 {[%emt 0:00:03]} d5 {[%emt 0:00:02]} 6. cxd5 {[%emt 0:00:08]} Bxc3+ {[%emt 0:00:46]} 7. bxc3 {[%emt 0:00:12]} exd5 {[%emt 0:00:03]} 8. Bg5 {[%emt 0:00:15]} c5 {[%emt 0:01:16]} 9. e3 {[%emt 0:00:07]} cxd4 {[%emt 0:00:04]} 10. cxd4 {[%emt 0:00:19]} Bg4 {[%emt 0:01:31]} 11. Nd2 {[%emt 0:02:45]} h6 {[%emt 0:01:35]} 12. Bxf6 {[%emt 0:01:32]} Qxf6 {[%emt 0:00:03]} 13. Bd3 {[%emt 0:00:05]} Nc6 {[%emt 0:00:21]} 14. Qb2 {[%emt 0:00:11]} Bf5 {[%emt 0:04:45]} 15. Be2 {[%emt 0:00:17]} b6 {[%emt 0:01:46]} 16. O-O {[%emt 0:00:23]} Rac8 {[%emt 0:00:03]} 17. Rac1 {[%emt 0:00:08]} Qd6 {[%emt 0:00:57]} 18. Rc3 {[%emt 0:01:13]} Qb4 {[%emt 0:00:35]} 19. Rb3 {[%emt 0:00:21]} Qd6 {[%emt 0:00:04]} 20. Ba6 {[%emt 0:00:19]} Rc7 {[%emt 0:00:24]} 21. Rc3 {[%emt 0:00:19]} Nb8 {[%emt 0:01:31]} 22. Rxc7 {[%emt 0:00:35]} Qxc7 {[%emt 0:00:01]} 23. Rc1 {[%emt 0:00:01]} Qd6 {[%emt 0:00:02]} 24. Bb5 {[%emt 0:00:25]} Rc8 {[%emt 0:00:12]} 25. Rxc8+ {[%emt 0:00:49]} Bxc8 {[%emt 0:00:02]} 26. Qc3 {[%emt 0:00:03]} Bd7 {[%emt 0:00:12]} 27. Bd3 {[%emt 0:00:37]} Qc6 {[%emt 0:00:20]} 28. Qa3 {[%emt 0:00:26]} Qc7 {[%emt 0:01:07]} 29. Nf3 {[%emt 0:01:10]} Nc6 {[%emt 0:00:07]} 30. h3 {[%emt 0:00:19]} a5 {[%emt 0:00:21]} 31. Qb2 {[%emt 0:01:34]} Nb4 {[%emt 0:00:13]} 32. Bb1 {[%emt 0:00:03]} b5 {[%emt 0:00:42]} 33. Ne5 {[%emt 0:00:29]} f6 {[%emt 0:00:47]} 34. Nxd7 {[%emt 0:00:14]} Qxd7 {[%emt 0:00:01]} 35. a3 {[%emt 0:00:17]} Na6 {[%emt 0:00:04]} 36. Qc3 {[%emt 0:01:09]} b4 {[%emt 0:00:04]} 37. Qd3 {[%emt 0:00:04]} Qc6 {[%emt 0:00:19]} 38. axb4 {[%emt 0:00:24]} Nxb4 {[%emt 0:00:11]} 39. Qh7+ {[%emt 0:00:13]} Kf8 {[%emt 0:00:01]} 40. Qh8+ {[%emt 0:00:07]} Kf7 {[%emt 0:00:01]} 41. Bh7 {[%emt 0:00:05]} Qc1+ {[%emt 0:00:40]} 42. Kh2 {[%emt 0:00:02]} Qc7+ {[%emt 0:00:02]} 43. f4 {[%emt 0:00:17]} Ke6 {[%emt 0:00:22]} 44. Qf8 {[%emt 0:00:20]} Qe7 {[%emt 0:00:20]} 45. Qb8 {[%emt 0:00:32]} Kd7 {[%emt 0:00:52]} 46. Qa7+ {[%emt 0:00:29]} Kd6 {[%emt 0:00:42]} 47. Qc5+ {[%emt 0:00:37]} Ke6 {[%emt 0:00:04]} 48. Qxa5 {[%emt 0:00:14]} g5 {[%emt 0:00:10]} 49. Bg8+ {[%emt 0:00:49]} Kf5 {[%emt 0:00:01]} 50. Bxd5 {[%emt 0:00:09]} gxf4 {[%emt 0:00:03]} 51. Bf3+ {[%emt 0:00:16]} Kg6 {[%emt 0:00:07]} 52. Qh5+ {[%emt 0:00:13]} Kg7 {[%emt 0:00:04]} 53. Qg4+ {[%emt 0:00:01]} Kh7 {[%emt 0:00:09]} 54. Qxf4 {[%emt 0:00:04]} Qf7 {[%emt 0:00:07]} 55. d5 {[%emt 0:00:05]} Kg7 {[%emt 0:00:05]} 56. Qxb4 {[%emt 0:00:02]} 1-0

[Event "HUN-ch Rapid 2019"]
[Site "Ajka"]
[Date "2019.07.19"]
[Round "2.20"]
[White "Hoang, Thanh Trang"]
[Black "Margl, Roland"]
[Result "1-0"]
[ECO "D02"]
[WhiteElo "2414"]
[BlackElo "2264"]
[Annotator "NA"]
[PlyCount "117"]
[EventDate "2019.07.18"]
[EventType "swiss"]
[EventCountry "HUN"]
[SourceTitle "playchess.com"]
[Source "ChessBase"]
[SourceQuality "1"]
[TimeControl "1200+5"]

1. d4 {[%emt 0:00:03]} d5 {[%emt 0:00:01]} 2. Nf3 {[%emt 0:00:06]} Nf6 {[%emt 0:00:03]} 3. Bf4 {[%emt 0:00:08]} g6 {[%emt 0:00:06]} 4. e3 {[%emt 0:00:09]} Bg7 {[%emt 0:00:04]} 5. Bd3 {[%emt 0:01:06]} O-O {[%emt 0:00:17]} 6. Nbd2 {[%emt 0:00:15]} c5 {[%emt 0:00:20]} 7. c3 {[%emt 0:00:05]} b6 {[%emt 0:00:19]} 8. O-O {[%emt 0:00:25]} Nc6 {[%emt 0:00:05]} 9. h3 {[%emt 0:00:13]} Bb7 {[%emt 0:00:17]} 10. Qe2 {[%emt 0:01:00]} Nd7 {[%emt 0:00:46]} 11. Rfd1 {[%emt 0:01:15]} Re8 {[%emt 0:01:54]} 12. Bb5 {[%emt 0:01:54]} a6 {[%emt 0:02:02]} 13. Ba4 {[%emt 0:00:39]} b5 {[%emt 0:02:55]} 14. Bb3 {[%emt 0:00:02]} cxd4 {[%emt 0:00:06]} 15. exd4 {[%emt 0:01:22]} Na5 {[%emt 0:01:42]} 16. Ne5 {[%emt 0:00:26]} Nc4 {[%emt 0:00:22]} 17. Rab1 {[%emt 0:00:31]} f6 {[%emt 0:01:09]} 18. Nxd7 {[%emt 0:03:51]} Qxd7 {[%emt 0:00:02]} 19. Nf3 {[%emt 0:00:04]} a5 {[%emt 0:02:54]} 20. Ne1 {[%emt 0:00:57]} e5 {[%emt 0:00:28]} 21. dxe5 {[%emt 0:00:23]} fxe5 {[%emt 0:00:02]} 22. Bg3 {[%emt 0:00:14]} Rac8 {[%emt 0:00:24]} 23. a4 {[%emt 0:00:12]} Qc6 {[%emt 0:00:54]} 24. Qc2 {[%emt 0:01:06]} Nb6 {[%emt 0:00:21]} 25. axb5 {[%emt 0:00:16]} Qxb5 {[%emt 0:00:02]} 26. Ra1 {[%emt 0:00:19]} Bc6 {[%emt 0:00:46]} 27. Nf3 {[%emt 0:00:14]} a4 {[%emt 0:00:52]} 28. Ba2 {[%emt 0:00:05]} Nc4 {[%emt 0:00:06]} 29. Bxc4 {[%emt 0:01:03]} Qxc4 {[%emt 0:00:09]} 30. Re1 {[%emt 0:00:01]} e4 {[%emt 0:00:25]} 31. Nd2 {[%emt 0:00:10]} Qc5 {[%emt 0:00:01]} 32. Bf4 {[%emt 0:00:55]} Bb5 {[%emt 0:00:36]} 33. Qd1 {[%emt 0:00:06]} h6 {[%emt 0:00:34]} 34. Be3 {[%emt 0:00:15]} Qf8 {[%emt 0:00:06]} 35. Nxe4 {[%emt 0:00:17]} dxe4 {[%emt 0:00:51]} 36. Qd5+ {[%emt 0:00:01]} Qf7 {[%emt 0:00:01]} 37. Qxb5 {[%emt 0:00:03]} Rb8 {[%emt 0:00:01]} 38. Qxa4 {[%emt 0:00:46]} Rxb2 {[%emt 0:00:01]} 39. Rac1 {[%emt 0:00:07]} Ra2 {[%emt 0:00:39]} 40. Qc6 {[%emt 0:00:12]} Re6 {[%emt 0:00:08]} 41. Qd5 {[%emt 0:00:08]} Raa6 {[%emt 0:00:19]} 42. Red1 {[%emt 0:00:23]} Rac6 {[%emt 0:00:08]} 43. c4 {[%emt 0:00:06]} Kh7 {[%emt 0:00:08]} 44. c5 {[%emt 0:00:07]} Qe7 {[%emt 0:00:07]} 45. Qd7 {[%emt 0:00:18]} Qxd7 {[%emt 0:00:04]} 46. Rxd7 {[%emt 0:00:01]} Kg8 {[%emt 0:00:02]} 47. Rb1 {[%emt 0:00:07]} Rc8 {[%emt 0:00:08]} 48. Rbb7 {[%emt 0:00:20]} Bf8 {[%emt 0:00:02]} 49. Rbc7 {[%emt 0:00:18]} Rc6 {[%emt 0:00:06]} 50. Rxc8 {[%emt 0:00:15]} Rxc8 {[%emt 0:00:01]} 51. Rd5 {[%emt 0:00:03]} Kf7 {[%emt 0:00:04]} 52. Re5 {[%emt 0:00:03]} Kf6 {[%emt 0:00:10]} 53. Rxe4 {[%emt 0:00:04]} Rc6 {[%emt 0:00:07]} 54. Kf1 {[%emt 0:00:06]} h5 {[%emt 0:00:01]} 55. Ke2 {[%emt 0:00:02]} Kf5 {[%emt 0:00:04]} 56. f3 {[%emt 0:00:07]} Ra6 {[%emt 0:00:01]} 57. Rf4+ {[%emt 0:00:09]} Ke5 {[%emt 0:00:05]} 58. Rxf8 {[%emt 0:00:03]} Ra2+ {[%emt 0:00:01]} 59. Bd2 {[%emt 0:00:01]} 1-0

[Event "HUN-ch Rapid 2019"]
[Site "Ajka"]
[Date "2019.07.19"]
[Round "3.2"]
[White "Balog, Imre"]
[Black "Farago, Ivan"]
[Result "1-0"]
[ECO "D03"]
[WhiteElo "2566"]
[BlackElo "2350"]
[Annotator "ChessBase"]
[PlyCount "175"]
[EventDate "2019.07.18"]
[EventType "swiss"]
[EventCountry "HUN"]
[SourceTitle "playchess.com"]
[Source "ChessBase"]
[SourceQuality "1"]
[TimeControl "1200+5"]

1. d4 {[%emt 0:00:06]} Nf6 {[%emt 0:00:02]} 2. Bg5 {[%emt 0:00:08]} d5 {[%emt 0:00:07]} 3. Nf3 {[%emt 0:00:03]} Nbd7 {[%emt 0:00:08]} 4. e3 {[%emt 0:00:11]} c5 {[%emt 0:00:15]} 5. Nbd2 {[%emt 0:00:41]} h6 {[%emt 0:00:23]} 6. Bh4 {[%emt 0:00:25]} e6 {[%emt 0:00:16]} 7. Be2 {[%emt 0:00:52]} b6 {[%emt 0:00:13]} 8. O-O {[%emt 0:00:09]} Bb7 {[%emt 0:00:02]} 9. Ne5 {[%emt 0:00:13]} Be7 {[%emt 0:01:09]} 10. Bb5 {[%emt 0:00:33]} O-O {[%emt 0:00:45]} 11. Nc6 {[%emt 0:00:18]} Bxc6 {[%emt 0:00:09]} 12. Bxc6 {[%emt 0:00:02]} Rc8 {[%emt 0:00:01]} 13. Bb5 {[%emt 0:00:02]} cxd4 {[%emt 0:00:53]} 14. exd4 {[%emt 0:00:03]} Ne4 {[%emt 0:00:08]} 15. Bg3 {[%emt 0:03:03]} Nxg3 {[%emt 0:00:08]} 16. hxg3 {[%emt 0:00:02]} Nf6 17. Re1 {[%emt 0:00:42]} Ne8 {[%emt 0:02:25]} 18. c3 {[%emt 0:00:13]} Nd6 {[%emt 0:00:02]} 19. Ba6 {[%emt 0:00:41]} Rc7 {[%emt 0:00:23]} 20. a4 {[%emt 0:00:02]} Qd7 {[%emt 0:00:41]} 21. Qe2 {[%emt 0:00:12]} Bf6 {[%emt 0:00:14]} 22. Bb5 {[%emt 0:01:10]} Qc8 {[%emt 0:01:03]} 23. a5 {[%emt 0:00:26]} bxa5 {[%emt 0:00:50]} 24. Reb1 {[%emt 0:03:56]} Qb7 {[%emt 0:00:25]} 25. Bd3 {[%emt 0:00:44]} Qb6 {[%emt 0:00:14]} 26. Ra3 {[%emt 0:00:01]} Re8 {[%emt 0:00:35]} 27. Rb3 {[%emt 0:02:37]} Qc6 {[%emt 0:00:04]} 28. Ra1 {[%emt 0:00:01]} Nc4 {[%emt 0:01:50]} 29. Nxc4 {[%emt 0:01:12]} dxc4 {[%emt 0:00:03]} 30. Be4 {[%emt 0:00:01]} Qd7 {[%emt 0:00:53]} 31. Rba3 {[%emt 0:00:01]} e5 {[%emt 0:00:41]} 32. d5 {[%emt 0:00:31]} Be7 {[%emt 0:01:41]} 33. Rxa5 {[%emt 0:00:02]} Bc5 {[%emt 0:00:09]} 34. g4 {[%emt 0:00:24]} Bb6 {[%emt 0:00:10]} 35. R5a4 {[%emt 0:00:26]} Qb5 {[%emt 0:00:56]} 36. g3 {[%emt 0:00:24]} Qc5 {[%emt 0:00:11]} 37. Kg2 {[%emt 0:00:07]} g6 {[%emt 0:00:04]} 38. Rh1 {[%emt 0:00:16]} Kg7 {[%emt 0:00:24]} 39. Raa1 {[%emt 0:00:09]} Rd7 {[%emt 0:00:26]} 40. Qd2 {[%emt 0:00:16]} Rh8 {[%emt 0:00:09]} 41. Rae1 {[%emt 0:00:29]} f5 {[%emt 0:00:20]} 42. gxf5 {[%emt 0:00:25]} gxf5 {[%emt 0:00:01]} 43. Bxf5 {[%emt 0:00:02]} Qxd5+ {[%emt 0:00:01]} 44. Qxd5 {[%emt 0:00:01]} Rxd5 {[%emt 0:00:01]} 45. Re2 {[%emt 0:00:04]} Rhd8 {[%emt 0:00:33]} 46. Rhe1 {[%emt 0:00:01]} Rd2 {[%emt 0:00:10]} 47. Be6 {[%emt 0:00:02]} e4 {[%emt 0:00:46]} 48. Bxc4 {[%emt 0:00:20]} e3 {[%emt 0:00:01]} 49. fxe3 {[%emt 0:00:08]} Bxe3 {[%emt 0:00:01]} 50. Kf3 {[%emt 0:00:01]} Rxe2 {[%emt 0:00:03]} 51. Rxe2 {[%emt 0:00:01]} Bc5 {[%emt 0:00:08]} 52. Re5 {[%emt 0:00:06]} Bd6 {[%emt 0:00:09]} 53. Ra5 {[%emt 0:00:12]} Bb8 {[%emt 0:00:02]} 54. Rb5 {[%emt 0:00:04]} Kf6 {[%emt 0:00:26]} 55. Rb7 {[%emt 0:00:09]} Kg6 {[%emt 0:00:13]} 56. g4 {[%emt 0:00:19]} Rf8+ {[%emt 0:00:01]} 57. Ke2 {[%emt 0:00:01]} Kg5 {[%emt 0:00:17]} 58. Rg7+ {[%emt 0:00:01]} Kf4 {[%emt 0:00:02]} 59. Rg6 {[%emt 0:00:11]} Re8+ {[%emt 0:00:23]} 60. Kd3 {[%emt 0:00:02]} Re5 {[%emt 0:00:07]} 61. Be6 {[%emt 0:00:25]} h5 {[%emt 0:00:02]} 62. gxh5 {[%emt 0:00:04]} Rxh5 {[%emt 0:00:01]} 63. Rg7 {[%emt 0:00:04]} Ra5 {[%emt 0:00:10]} 64. Rb7 {[%emt 0:00:02]} Bd6 {[%emt 0:00:09]} 65. Kc4 {[%emt 0:00:05]} Ke5 {[%emt 0:00:06]} 66. Bh3 {[%emt 0:00:05]} Rc5+ {[%emt 0:00:20]} 67. Kd3 {[%emt 0:00:01]} Rc7 {[%emt 0:00:02]} 68. Rb5+ {[%emt 0:00:02]} Kf6 {[%emt 0:00:05]} 69. Rh5 {[%emt 0:00:04]} Bc5 {[%emt 0:00:06]} 70. b4 {[%emt 0:00:05]} Bg1 {[%emt 0:00:11]} 71. c4 {[%emt 0:00:04]} Rg7 {[%emt 0:00:07]} 72. c5 {[%emt 0:00:12]} Rg5 {[%emt 0:00:34]} 73. Rh7 {[%emt 0:00:31]} Bxc5 {[%emt 0:00:05]} 74. bxc5 Rxc5 {[%emt 0:00:01]} 75. Kd4 {[%emt 0:00:01]} Ra5 76. Bf1 Ra4+ {[%emt 0:00:09]} 77. Bc4 {[%emt 0:00:02]} a5 {[%emt 0:00:01]} 78. Rf7+ {[%emt 0:00:02]} Kg6 {[%emt 0:00:02]} 79. Rf1 {[%emt 0:00:02]} Ra3 {[%emt 0:00:05]} 80. Bd5 {[%emt 0:00:04]} Rh3 {[%emt 0:00:05]} 81. Ke5 {[%emt 0:00:02]} a4 {[%emt 0:00:05]} 82. Rg1+ {[%emt 0:00:01]} Kh6 {[%emt 0:00:03]} 83. Kf6 {[%emt 0:00:05]} a3 {[%emt 0:00:04]} 84. Rg8 {[%emt 0:00:11]} Kh7 {[%emt 0:00:01]} 85. Ra8 {[%emt 0:00:09]} Re3 {[%emt 0:00:13]} 86. Bg8+ {[%emt 0:00:07]} Kh6 {[%emt 0:00:01]} 87. Be6 {[%emt 0:00:01]} Kh7 {[%emt 0:00:07]} 88. Bf5+ {[%emt 0:00:02]} 1-0

[Event "HUN-ch Rapid 2019"]
[Site "Ajka"]
[Date "2019.07.19"]
[Round "3.3"]
[White "Videki, Sandor"]
[Black "Banusz, Tamas"]
[Result "0-1"]
[ECO "A29"]
[WhiteElo "2401"]
[BlackElo "2626"]
[Annotator "RC"]
[PlyCount "118"]
[EventDate "2019.07.18"]
[EventType "swiss"]
[EventCountry "HUN"]
[SourceTitle "playchess.com"]
[Source "ChessBase"]
[SourceQuality "1"]
[TimeControl "1200+5"]

1. c4 {[%emt 0:00:01]} e5 {[%emt 0:00:09]} 2. Nc3 {[%emt 0:00:10]} Nf6 {[%emt 0:00:02]} 3. Nf3 {[%emt 0:00:11]} Nc6 {[%emt 0:00:01]} 4. g3 {[%emt 0:00:01]} d5 {[%emt 0:00:10]} 5. cxd5 {[%emt 0:00:07]} Nxd5 {[%emt 0:00:02]} 6. Bg2 {[%emt 0:00:31]} Nb6 {[%emt 0:00:02]} 7. O-O {[%emt 0:00:10]} Be7 {[%emt 0:00:01]} 8. d3 {[%emt 0:00:14]} O-O {[%emt 0:00:04]} 9. Be3 {[%emt 0:00:10]} Be6 {[%emt 0:00:09]} 10. Rc1 {[%emt 0:00:07]} Nd5 {[%emt 0:00:10]} 11. Nxd5 {[%emt 0:00:30]} Bxd5 {[%emt 0:00:02]} 12. Qa4 {[%emt 0:00:52]} Re8 {[%emt 0:00:13]} 13. Bc5 {[%emt 0:00:11]} Bf6 {[%emt 0:00:24]} 14. e4 {[%emt 0:01:21]} Be6 {[%emt 0:00:09]} 15. Rfd1 {[%emt 0:00:05]} Qd7 {[%emt 0:00:37]} 16. Rd2 {[%emt 0:00:38]} Rad8 {[%emt 0:00:55]} 17. Be3 {[%emt 0:00:14]} Nd4 {[%emt 0:01:36]} 18. Qxd7 {[%emt 0:00:10]} Nxf3+ {[%emt 0:00:02]} 19. Bxf3 {[%emt 0:00:02]} Rxd7 {[%emt 0:00:01]} 20. a3 {[%emt 0:00:56]} a6 {[%emt 0:01:13]} 21. Rc3 {[%emt 0:00:07]} c6 {[%emt 0:00:15]} 22. Kg2 {[%emt 0:00:28]} Be7 {[%emt 0:00:03]} 23. h3 {[%emt 0:00:07]} g6 {[%emt 0:00:03]} 24. Bd1 {[%emt 0:01:47]} f5 {[%emt 0:00:08]} 25. Bb3 {[%emt 0:00:21]} Kf7 {[%emt 0:00:02]} 26. f3 {[%emt 0:00:50]} Bxb3 {[%emt 0:00:10]} 27. Rxb3 {[%emt 0:00:01]} Ke6 {[%emt 0:00:03]} 28. Kf2 {[%emt 0:00:26]} h5 {[%emt 0:00:33]} 29. Ke2 {[%emt 0:00:09]} Bd6 {[%emt 0:01:27]} 30. Bf2 {[%emt 0:02:11]} Rf8 {[%emt 0:00:02]} 31. d4 {[%emt 0:00:27]} fxe4 {[%emt 0:00:25]} 32. fxe4 {[%emt 0:00:43]} exd4 {[%emt 0:00:47]} 33. Bxd4 {[%emt 0:00:04]} c5 {[%emt 0:00:45]} 34. Bg1 {[%emt 0:00:52]} b5 {[%emt 0:00:12]} 35. Rbd3 {[%emt 0:00:31]} Rfd8 {[%emt 0:00:05]} 36. Rd5 {[%emt 0:00:07]} Be7 {[%emt 0:02:44]} 37. Rxd7 {[%emt 0:00:23]} Rxd7 {[%emt 0:00:01]} 38. Rxd7 {[%emt 0:00:09]} Kxd7 {[%emt 0:00:01]} 39. b3 {[%emt 0:00:59]} Ke6 {[%emt 0:00:43]} 40. a4 {[%emt 0:00:48]} bxa4 {[%emt 0:01:28]} 41. bxa4 {[%emt 0:00:02]} c4 {[%emt 0:01:13]} 42. Bd4 {[%emt 0:00:41]} Bf6 {[%emt 0:00:10]} 43. Ke3 {[%emt 0:00:10]} Be5 {[%emt 0:01:13]} 44. g4 {[%emt 0:00:24]} hxg4 {[%emt 0:01:36]} 45. hxg4 {[%emt 0:00:01]} Kf6 {[%emt 0:00:19]} 46. g5+ {[%emt 0:01:36]} Ke6 {[%emt 0:00:01]} 47. Ba7 {[%emt 0:00:01]} Bh2 {[%emt 0:00:30]} 48. Kd2 {[%emt 0:00:14]} Bf4+ {[%emt 0:00:19]} 49. Kc3 {[%emt 0:00:03]} Ke5 {[%emt 0:00:40]} 50. Kxc4 {[%emt 0:00:29]} Kxe4 {[%emt 0:00:01]} 51. Kb4 {[%emt 0:00:21]} Bd2+ {[%emt 0:00:01]} 52. Kc4 {[%emt 0:00:10]} Bxg5 {[%emt 0:00:01]} 53. Bb6 {[%emt 0:00:24]} Be7 {[%emt 0:00:03]} 54. Kc3 {[%emt 0:00:47]} g5 {[%emt 0:00:12]} 55. Kd2 {[%emt 0:00:01]} g4 {[%emt 0:00:01]} 56. Ke2 {[%emt 0:00:10]} Bf6 {[%emt 0:00:14]} 57. Bf2 {[%emt 0:00:49]} Be5 {[%emt 0:00:07]} 58. Bh4 {[%emt 0:00:06]} g3 {[%emt 0:00:10]} 59. Bd8 {[%emt 0:00:09]} Bd4 {[%emt 0:00:03]} 0-1

[Event "HUN-ch Rapid 2019"]
[Site "Ajka"]
[Date "2019.07.19"]
[Round "3.4"]
[White "Papp, Gabor"]
[Black "Popovics, Adam"]
[Result "1-0"]
[ECO "C84"]
[WhiteElo "2587"]
[BlackElo "2365"]
[Annotator "ChessBase"]
[PlyCount "63"]
[EventDate "2019.07.18"]
[EventType "swiss"]
[EventCountry "HUN"]
[SourceTitle "playchess.com"]
[Source "ChessBase"]
[SourceQuality "1"]
[TimeControl "1200+5"]

1. e4 {[%emt 0:00:01]} e5 {[%emt 0:00:04]} 2. Nf3 {[%emt 0:00:02]} Nc6 {[%emt 0:00:01]} 3. Bb5 {[%emt 0:00:04]} a6 {[%emt 0:00:01]} 4. Ba4 {[%emt 0:00:01]} Nf6 {[%emt 0:00:01]} 5. O-O {[%emt 0:00:02]} Be7 {[%emt 0:00:01]} 6. d3 {[%emt 0:00:02]} b5 {[%emt 0:00:19]} 7. Bb3 {[%emt 0:00:02]} d6 {[%emt 0:00:01]} 8. a3 {[%emt 0:00:14]} O-O {[%emt 0:00:27]} 9. Nc3 {[%emt 0:00:02]} Bg4 {[%emt 0:00:06]} 10. Be3 {[%emt 0:00:07]} Nd4 {[%emt 0:00:33]} 11. Bxd4 {[%emt 0:00:03]} exd4 {[%emt 0:00:01]} 12. Nd5 {[%emt 0:00:01]} c6 {[%emt 0:00:20]} 13. h3 {[%emt 0:00:29]} Bxf3 {[%emt 0:01:45]} 14. Nxf6+ {[%emt 0:00:07]} Bxf6 {[%emt 0:00:01]} 15. Qxf3 {[%emt 0:00:02]} g6 {[%emt 0:01:06]} 16. a4 {[%emt 0:00:50]} Bg7 {[%emt 0:00:25]} 17. Qg3 {[%emt 0:00:15]} Qe7 {[%emt 0:01:01]} 18. f4 {[%emt 0:00:05]} Kh8 {[%emt 0:00:11]} 19. Rae1 {[%emt 0:00:35]} Rae8 {[%emt 0:00:55]} 20. Qf2 {[%emt 0:00:51]} c5 {[%emt 0:00:51]} 21. axb5 {[%emt 0:00:07]} axb5 {[%emt 0:00:01]} 22. Bd5 {[%emt 0:00:15]} Qd7 {[%emt 0:00:33]} 23. Qf3 {[%emt 0:00:50]} f5 {[%emt 0:01:10]} 24. e5 {[%emt 0:00:35]} dxe5 {[%emt 0:03:19]} 25. Bc6 {[%emt 0:00:04]} Qc7 {[%emt 0:00:28]} 26. Bxe8 {[%emt 0:00:13]} Rxe8 {[%emt 0:00:01]} 27. fxe5 {[%emt 0:00:05]} Bxe5 {[%emt 0:00:48]} 28. Kh1 {[%emt 0:00:17]} Rd8 {[%emt 0:00:52]} 29. Re2 {[%emt 0:00:08]} Bg3 {[%emt 0:00:37]} 30. Ra1 {[%emt 0:00:18]} Kg7 {[%emt 0:01:12]} 31. Ra6 {[%emt 0:00:18]} Bh4 {[%emt 0:01:49]} 32. Rc6 {[%emt 0:00:48]} 1-0